Cogmind - Beta 13 X1 @@@ ROGUE MODE // 2023.10.17 @ 14:53:35 // Winter2022/Polymind Player: f3-rnm Result: Destroyed by G-47 Trooper with Particle Gun Performance ------------- Evolutions (2) 1000 Regions Visited (5) 1000 Robots Destroyed (23) 115 Value Destroyed (721) 721 Prototype IDs (0) 0 Alien Tech Used (0) 0 Bonus (1536) 1536 TOTAL SCORE: 4282 Bonus ------- Polymind Skill 1336 Entered Garrisons 200 Cogmind --------- Core Integrity 0/550 Matter 91/100 Energy 215/215 System Corruption 0% Temperature Cool (9) Movement Treading (160) Location -8/Materials Parts ------- > --- POWER (1) -------- Improved Ion Engine > --- PROPULSION (2) --- Light Treads Light Treads > --- UTILITY (3) ------ Heat Sink Heat Sink Light Armor Plating > --- WEAPON (2) ------- Beam Rifle Heavy Assault Rifle > --- INVENTORY (1) ---- Improved Medium Armor Plating Peak State ------------ > --- POWER ------------ Subdweller Power Source > --- PROPULSION ------- Subdweller Monowheel > --- UTILITY ---------- Disposable Heat Sink Subdweller Optics Scrap Shield > --- WEAPON ----------- Subdweller Machine Gun > --- INVENTORY -------- Scrap Shield Fragment [Rating: 14] Favorites ----------- Power Improved Ion Engine Engine Improved Ion Engine Propulsion Light Treads Treads Light Treads Wheel Subdweller Monowheel Utility Heat Sink Device Heat Sink Processor Terrain Scan Processor Protection Light Armor Plating Weapon Beam Rifle Energy Gun Beam Rifle Ballistic Gun Heavy Assault Rifle Special Weapon Welding Torch Build | -11 -10 -10 -8 -8 -8 ------- Run | Jun Mat Sub Mat Gar Mat Slots Evolved . | . . . . . . Power . | . . . . . . Propulsion . | . . . . . . Utility . | . . . . . . Weapon . | . . . . . . Parts Attached . | . . . . . . Power . | . . . . . . Engine . | . . . . . . Core . | . . . . . . Reactor . | . . . . . . Propulsion . | . . . . . . Treads . | . . . . . . Leg . | . . . . . . Wheel . | . . . . . . Hover . | . . . . . . Flight . | . . . . . . Utility . | . . . . . . Device . | . . . . . . Storage . | . . . . . . Processor . | . . . . . . Hackware . | . . . . . . Protection . | . . . . . . Artifact . | . . . . . . Weapon . | . . . . . . Energy Gun . | . . . . . . Energy Cannon . | . . . . . . Ballistic Gun . | . . . . . . Ballistic Cannon . | . . . . . . Launcher . | . . . . . . Special Weapon . | . . . . . . Impact Weapon . | . . . . . . Slashing Weapon . | . . . . . . Piercing Weapon . | . . . . . . Special Melee Weapon . | . . . . . . Unidentified Prototypes . | . . . . . . Parts Lost 13 | . . 2 11 . . Power 2 | . . . 2 . . Propulsion 3 | . . . 3 . . Utility 5 | . . 1 4 . . Weapon 3 | . . 1 2 . . Highest Loss Streak 5 | . . 1 5 . . To Critical Strikes . | . . . . . . Average Slot Usage (%) 89 | . 83 87 86 94 100 Engine 11 | . 11 14 10 11 12 Treads 14 | . . . 19 23 25 Wheel 7 | . 23 17 2 . . Device 25 | . 23 28 23 23 25 Processor 1 | . 11 3 . . . Protection 8 | . . 9 7 11 12 Energy Gun 7 | . . . 10 12 12 Ballistic Gun 10 | . . 10 11 11 12 Special Weapon 1 | . 11 3 . . . Naked Turns 26 | . 23 1 2 . . Heaviest Build 30 | . 6 30 18 18 18 Greatest Support 40 | 3 20 20 40 40 40 Greatest Overweight (x) 3 | . . 1 3 1 . Average Overweight (x) . | . . . . . . Largest Inventory Capacity 2 | . . 2 2 1 1 Average Capacity 1 | . . 1 1 1 1 Most Carried 1 | . . 1 1 . 1 Average Carried . | . . . . . . Final Capacity 2 | . . 2 1 1 1 Final Carried 1 | . . 1 . . 1 Class Distribution -------------------- 58% | Sentry 26% | Subdweller 12% | Builder Dominant Class ---------------- Builder | -10/Materials Subdweller | -10/Subcaves Sentry | -8/Materials Sentry | -8/Garrison Sentry | -8/Materials Resources | -11 -10 -10 -8 -8 -8 ----------- Run | Jun Mat Sub Mat Gar Mat Matter Collected 217 | . . 59 113 3 42 Remotely . | . . . . . . Salvage Created 745 | . . 65 528 74 78 Parts 57 | . . 9 39 . 9 Haulers Intercepted 2 | . . . 2 . . Recyclers Shooed 1 | . . . 1 . . Parts Field Recycled . | . . . . . . Retrieved Matter . | . . . . . . Parts Self-Destructed 2 | . . 2 . . . Prevented . | . . . . . . Kills | -11 -10 -10 -8 -8 -8 ------- Run | Jun Mat Sub Mat Gar Mat Combat Hostiles Destroyed 20 | . . 4 11 1 4 Guns 20 | . . 4 11 1 4 Classes Destroyed 6 | . . 1 5 . . Worker 1 | . . . 1 . . Hauler 2 | . . . 2 . . Swarmer 5 | . . . 3 . 2 Grunt 4 | . . . 3 . 1 Sentry 7 | . . . 5 1 1 Subdweller 4 | . . 4 . . . Best Kill Streak 7 | . . 2 7 1 3 Combat Bots Only 4 | . . 2 4 1 3 Max Kills in Single Turn 2 | . . 1 2 1 1 Gunslinging . | . . . . . . Exploded . | . . . . . . Melee . | . . . . . . Uniques/NPCs Destroyed . | . . . . . . Combat | -11 -10 -10 -8 -8 -8 -------- Run | Jun Mat Sub Mat Gar Mat Damage Taken 2356 | . . 466 1462 . 428 Core 632 | . . 79 457 . 96 Absorbed by Shields . | . . . . . . Core Remaining (%) 84 | 100 . 68 . . . Volleys Fired 89 | . . 25 46 5 13 Largest 2 | . . 1 2 2 2 Hottest 79 | . . 30 79 79 79 Shots Fired 144 | . . 25 83 10 26 Gun 144 | . . 25 83 10 26 Cannon . | . . . . . . Launcher . | . . . . . . Special . | . . . . . . Kinetic 85 | . . 25 42 5 13 Thermal 59 | . . . 41 5 13 Explosive . | . . . . . . Electromagnetic . | . . . . . . Robot Hit Streak 20 | . . 5 20 6 12 Robot Miss Streak 2 | . . 2 2 . 1 Penetration Max . | . . . . . . Secondary Targets 3 | . . . 3 . . Max Gunslinging Chain 1 | . . . 1 . . Shots Hit Robots 99 | . . 18 59 2 20 Core Hits 40 | . . 5 27 2 6 Critical Kills . | . . . . . . Critical Parts Destroyed . | . . . . . . Critical Strikes 6 | . . 1 5 . . Burn 5 | . . . 5 . . Destroy 1 | . . 1 . . . Melee Attacks . | . . . . . . Impact . | . . . . . . Slashing . | . . . . . . Piercing . | . . . . . . Sneak Attacks . | . . . . . . Combat Hostiles . | . . . . . . Follow-up Attacks . | . . . . . . Damage Inflicted 1816 | . . 424 1039 35 318 Guns 1769 | . . 416 1000 35 318 Cannons . | . . . . . . Explosions . | . . . . . . Melee . | . . . . . . Ramming 47 | . . 8 39 . . Kinetic 1105 | . . 416 532 19 138 Thermal 664 | . . . 468 16 180 Explosive . | . . . . . . Electromagnetic . | . . . . . . Impact . | . . . . . . Slashing . | . . . . . . Piercing . | . . . . . . Highest Corruption 1 | . . 1 . . . Average Corruption 1 | . . 1 . . . Corruption Purged . | . . . . . . Corruption Blocked . | . . . . . . Effects 2 | . . 2 . . . Heat Flow Errors 1 | . . 1 . . . Energy Discharges 1 | . . 1 . . . Overload Shots . | . . . . . . Overflow Damage . | . . . . . . Projectiles . | . . . . . . Explosions . | . . . . . . Melee . | . . . . . . Knockbacks . | . . . . . . Impact . | . . . . . . Kinetic . | . . . . . . Secondary . | . . . . . . Self-Inflicted Damage 19 | . . 4 15 . . Shots . | . . . . . . Rammed 21 | . . 1 20 . . Targets Rammed 21 | . . 1 20 . . Kicked . | . . . . . . Crushed . | . . . . . . Highest Temperature 181 | . . 181 74 1 20 Average Temperature 30 | . . 100 31 1 8 Received Heat Transfer 660 | . . 30 495 . 135 Siege Activations . | . . . . . . Robots Corrupted . | . . . . . . Combat Hostiles . | . . . . . . Parts Fried . | . . . . . . Impact Corruptions . | . . . . . . Robots Melted . | . . . . . . Combat Hostiles . | . . . . . . Parts Melted 2 | . . . 1 . 1 Heat Transferred 1998 | . . . 1517 37 444 Parts Sabotaged . | . . . . . . Parts Stolen . | . . . . . . Parts Stripped . | . . . . . . Power Chain Reactions . | . . . . . . Missiles Intercepted . | . . . . . . Alert | -11 -10 -10 -8 -8 -8 ------- Run | Jun Mat Sub Mat Gar Mat Peak Influence 233 | . . . 227 180 233 Initial 150 | . . . . 150 87 Average 98 | . . . 74 170 134 Maximum Alert Level 1 | . . . 1 . 1 Low Security (%) 92 | 100 100 . 97 100 71 Level 1 7 | . . . 2 . 28 Level 2 . | . . . . . . Level 3 . | . . . . . . Level 4 . | . . . . . . Level 5 . | . . . . . . High Security . | . . . . . . Max Security . | . . . . . . Squads Dispatched 3 | . . . 2 . 1 Investigation . | . . . . . . Extermination . | . . . . . . Reinforcement 1 | . . . . . 1 Assault . | . . . . . . Garrison 2 | . . . 2 . . Intercept . | . . . . . . Searches Triggered . | . . . . . . Construction Impeded 1 | . . . . . 1 Haulers Reinforced . | . . . . . . Active Scanning Responses . | . . . . . . Cargo Convoy Interrupts . | . . . . . . Stealth | -11 -10 -10 -8 -8 -8 --------- Run | Jun Mat Sub Mat Gar Mat Distress Signals 1 | . . . 1 . . Communications Jammed . | . . . . . . Distress Signals . | . . . . . . Times Spotted 30 | . . 6 16 . 8 Peak Tracking Total 5 | . . 3 5 . 3 Tactical Retreats 2 | . . . 1 . 1 Traps | -11 -10 -10 -8 -8 -8 ------- Run | Jun Mat Sub Mat Gar Mat Traps Triggered 2 | . . 1 1 . . Indirectly . | . . . . . . Trap Hack Attempts . | . . . . . . Triggered . | . . . . . . Disarmed . | . . . . . . Reprogrammed . | . . . . . . Reused . | . . . . . . Traps Extracted . | . . . . . . Installed . | . . . . . . Triggered . | . . . . . . Machines | -11 -10 -10 -8 -8 -8 ---------- Run | Jun Mat Sub Mat Gar Mat Machines Disabled . | . . . . . . Max in Single Turn . | . . . . . . Machines Repaired . | . . . . . . Machines Sabotaged . | . . . . . . Overloaded Fab Kills . | . . . . . . Hacking | -11 -10 -10 -8 -8 -8 --------- Run | Jun Mat Sub Mat Gar Mat Machines Accessed 2 | . . . 2 . . Terminals 1 | . . . 1 . . Fabricators . | . . . . . . Repair Stations . | . . . . . . Recycling Units . | . . . . . . Scanalyzers . | . . . . . . Garrison Access 1 | . . . 1 . . Total Hacks 2 | . . . 2 . . Successful 2 | . . . 2 . . Failed . | . . . . . . Catastrophic . | . . . . . . Database Lockouts . | . . . . . . Manual . | . . . . . . Terminals 1 | . . . 1 . . Fabricators . | . . . . . . Repair Stations . | . . . . . . Recycling Units . | . . . . . . Scanalyzers . | . . . . . . Garrison Access 1 | . . . 1 . . Terminal Hacks 1 | . . . 1 . . Record 1 | . . . 1 . . Fabricator Hacks . | . . . . . . Repair Station Hacks . | . . . . . . Recycling Unit Hacks . | . . . . . . Scanalyzer . | . . . . . . Garrison Access Hacks 1 | . . . 1 . . Unlock Access 1 | . . . 1 . . Unauthorized Hacks . | . . . . . . Terminals . | . . . . . . Fabricators . | . . . . . . Repair Stations . | . . . . . . Recycling Units . | . . . . . . Scanalyzers . | . . . . . . Garrison Access . | . . . . . . Data Cores Recovered . | . . . . . . Used . | . . . . . . Hacking Detections . | . . . . . . Full Trace Events . | . . . . . . Feedback Events . | . . . . . . Feedback Blocked . | . . . . . . Robot Schematics Acquired . | . . . . . . Robots Built . | . . . . . . Authchips . | . . . . . . Time . | . . . . . . Total Robot Build Rating . | . . . . . . Part Schematics Acquired . | . . . . . . Parts Built . | . . . . . . Authchips . | . . . . . . Time . | . . . . . . Total Part Build Rating . | . . . . . . Parts Repaired . | . . . . . . Time . | . . . . . . Parts Recycled . | . . . . . . Recycled Matter . | . . . . . . Retrieved Matter . | . . . . . . Retrieved Components . | . . . . . . Parts Scanalyzed . | . . . . . . Part Schematics Acquired . | . . . . . . Parts Damaged . | . . . . . . Bothacking | -11 -10 -10 -8 -8 -8 ------------ Run | Jun Mat Sub Mat Gar Mat Used RIF Installer . | . . . . . . Robots Hacked 4 | . 1 . 2 1 . Non-combat 1 | . 1 . . . . Combat 3 | . . . 2 1 . Robot Hacks Applied 6 | . 1 . 4 1 . map_walls 1 | . 1 . . . . find_shortcuts 3 | . . . 2 1 . find_garrison 2 | . . . 2 . . Relay Couplers Released . | . . . . . . Fabnet Peak Effective % . | . . . . . . Robots Rewired . | . . . . . . Allies Hacked . | . . . . . . Hacks Repelled . | . . . . . . Allies | -11 -10 -10 -8 -8 -8 -------- Run | Jun Mat Sub Mat Gar Mat Total Allies . | . . . . . . Largest Group . | . . . . . . Highest-Rated Group . | . . . . . . Highest-Rated Ally . | . . . . . . Total Orders . | . . . . . . Ally Attacks . | . . . . . . Total Damage . | . . . . . . Kills . | . . . . . . Allies Corrupted . | . . . . . . Allies Melted . | . . . . . . Intel | -11 -10 -10 -8 -8 -8 ------- Run | Jun Mat Sub Mat Gar Mat Robot Analysis Total 3 | . 1 1 1 . . Derelict Logs Recovered 2 | . . 2 . . . Drone Launches . | . . . . . . Drone Recoveries . | . . . . . . Exploration | -11 -10 -10 -8 -8 -8 ------------- Run | Jun Mat Sub Mat Gar Mat Turns Passed 1628 | 15 120 453 549 245 246 Spaces Moved 1011 | 29 76 380 257 152 117 Core 107 | 29 44 1 13 20 . Treads 449 | . . . 200 132 117 Legs . | . . . . . . Wheels 455 | . 32 379 44 . . Hover . | . . . . . . Flight . | . . . . . . Fastest Speed 50 | 50 50 50 50 100 160 Average Speed 124 | 50 62 105 148 152 160 Slowest Speed 200 | 50 80 120 200 160 160 Overloaded Moves . | . . . . . . Propulsion Burnouts . | . . . . . . Robots Hopped . | . . . . . . Cave-ins Triggered . | . . . . . . Exploration Rate (%) 18 | 4 27 14 23 36 9 Regions Visited 5 Branch Regions 1 Pre-discovered Areas . | . . . . . . Known Exits Taken 1 | . . . 1 . . Unknown Exits Taken 3 | 1 1 1 . . . Scrap Searched 5 | . . 5 . . . Spaces Dug . | . . . . . . Terrain Destroyed . | . . . . . . Melee . | . . . . . . Projectile . | . . . . . . AOE . | . . . . . . Terrain Rammed . | . . . . . . Walls Destroyed . | . . . . . . Machines Disabled . | . . . . . . Actions | -11 -10 -10 -8 -8 -8 --------- Run | Jun Mat Sub Mat Gar Mat Total 1226 | 28 152 406 335 156 149 Wait 99 | . 71 . 10 . 18 Move 1007 | 28 75 379 257 151 117 Hop . | . . . . . . Pick Up 2 | . . . 1 . 1 Fast Attach . | . . . . . . Attach . | . . . . . . Detach . | . . . . . . Swap . | . . . . . . Drop 1 | . . . 1 . . Fire 89 | . . 25 46 5 13 Melee . | . . . . . . Ram 21 | . . 1 20 . . Kick . | . . . . . . Crush . | . . . . . . Escape Stasis . | . . . . . . Rewire . | . . . . . . Trap . | . . . . . . Miscellaneous 7 | . 6 1 . . . Route ------- -11/Junkyard -10/Materials -10/Subcaves (discovered 2 exits: *Mat / Rec) -8/Materials (discovered 2 exits: Fac / Gar) -8/Garrison -8/Materials History --------- Turn | Location | Event 3 | -11/Junkyard | Discovered new exit (range 15) 16 | -11/Junkyard | Entered Materials 44 | -10/Materials | Discovered new exit (range 11) 136 | -10/Materials | Entered Subcaves 137 | -10/Subcaves | Learned 4 Materials zone layouts 141 | -10/Subcaves | Identified exit to Recycling 163 | -10/Subcaves | Discovered new exit (range 8) 563 | -10/Subcaves | Ambushed by Subdweller buried in earth 589 | -10/Subcaves | Entered Materials 590 | -8/Materials | Identified exit to Factory 710 | -8/Materials | Lost 5 parts (1p1n2u1w) 746 | -8/Materials | Core integrity fell below 50% 1021 | -8/Materials | Garrison activated, responded to threat 1093 | -8/Materials | Core integrity fell below 20% 1138 | -8/Materials | Identified exit to Garrison 1138 | -8/Materials | Entered Garrison 1158 | -8/Garrison | Triggered checkpoint 1364 | -8/Garrison | Discovered new exit (range 13) 1383 | -8/Garrison | Entered Materials 1629 | -8/Materials | Destroyed by G-47 Trooper with Particle Gun Last Messages --------------- 01555_ ALERT: Construction progress impeded, dispatching reinforcements to local area. 01557_ U-05 Engineer builds a Door. 01560_ Heat Sink melted. 01560_ Y-45 Defender destroyed. 01563_ K-01 Serf collects debris. 01575_ Acquired 42 matter. 01575_ K-01 Serf collects debris. 01577_ Critical hit (Burn: +37). 01582_ K-01 Serf collects debris. 01584_ G-47 Trooper destroyed. 01586_ R-06 Scavenger collects Lgt. Armor Plating. 01586_ K-01 Serf collects debris. 01589_ R-06 Scavenger collects Imp. Ion Engine. 01590_ K-01 Serf collects debris. 01593_ R-06 Scavenger collects Hvy. Assault Rifle. 01593_ K-01 Serf collects debris. 01595_ Acquired 28 Protomatter. 01597_ K-01 Serf collects debris. 01598_ R-06 Scavenger collects Heat Sink. Map ----- +----------------------------------------------------+ | ??????????????????????????????????????????????? | | ??????????????????????????????????????????????? | | ??????????????????????????????????????????????? | | ??????????????????????????????????????????????? | | ??????????????????????????????????????????????? | | ??????????????????????????????????????????????? | | ??????????????????????????????????????????????? | | ??????????????????????????????????????????????? | | ??????????????????????????????????????????????? | | ??????????????????????????????????????????????? | | ??????????????????????????????????????????????? | | ?????????????????????????? ???????????????????? | | ?????????????????????????# #???????????????? ?? | | ?????????????????????????# #???????????????# ?? | | ?????????????????????????# #???????????????# ![ | | ?????????????????????????# #???????????????# ![ | | ????????????????????????## ####????????????# !/ | | ????????????????????????# ????????????# | | ????????????????????????# ?????????????# | | ?????????????????????#### ??????????????# "" | | ?????????????????????? #??????????????# "" | | ??????????????????????? #??????????????# "" | | ????????????????????????# #??????????????# | | ?????????????############ ##?????????????# * | | ?????????????# # #################+ | | ?????????????# [ Y# ! = % [ | | ?????????????# ! = g | | ?????????????# """ # | | ?????????????# """ " " # ########### # | | ?????????????? """ "R" ###+###?????????# # | | ???????????????""" """ #???????????????#! !# | | ?????????????? #???????????????##!!!!## | | ???????????????#########????????????????######? | | ??????????????????????????????????????????????? | | ??????????????????????????????????????????????? | | ??????????????????????????????????????????????? | | ??????????????????????????????????????????????? | | ??????????????????????????????????????????????? | | ??????????????????????????????????????????????? | | | | | | | | | | | | | | | | | | | | | | | +----------------------------------------------------+ Best States ------------- Heat Dissipation 36 Coolant Potential 50 Energy Generation 20 Energy Capacity 215 Matter Stores 100 Matter Capacity 100 Sight Range 19 Terrain Scan Range 14 Terrain Scan Density 85 Armor Coverage 800 Resistance: EX 50 Resistance: I 25 Evasion (%) 50 Recoil Reduction 2 Item Schematics ----------------- None Robot Schematics ------------------ None Fabricated ------------ Nothing Alien Tech Used ----------------- None Achievements -------------- None Challenges ------------ None Polymind | -11 -10 -10 -8 -8 -8 ---------- Run | Jun Mat Sub Mat Gar Mat Hosts 5 | . 1 1 2 1 . Combat Hostiles 4 | . . 1 2 1 . Allies . | . . . . . . Unique Host Classes 3 | . 1 1 1 . . Average Host Suspicion 60 | . 43 18 91 72 64 Unsuspicious Activity 286 | . 8 256 11 11 . Returns to Shadow . | . . . . . . Fuzzy Dispatches . | . . . . . . Protomatter Created 164 | . . 48 80 . 36 Used 107 | . 5 33 46 23 . Decayed 29 | . . 29 . . . Highest Spend 33 | . 5 33 23 23 . Top 5 Hosts by Kills: Y-45 Defender (-8/Materials: 11) Y-45 Defender (-8/Garrison: 5) Y6-SFY(R) (-10/Subcaves: 4) Game ------ Seed AlloySmallDatajack Manual? 0 Play Time 00:09:44 Cumulative 103.5 hours Start 2023.10.17 @ 14:42:58 End 2023.10.17 @ 14:53:35 Sessions 1 Manual Loads 0 Difficulty Rogue Special Mode Winter2022/Polymind Game No. 109 Rogue 73 Adventurer 36 Explorer 0 Win Type - Total 7 Types 2/0/5/0/0/0/0/0/0 Lore% 50 Gallery% 72 Achievement% 61 Wizard Run 0 Options --------- ASCII 0 Keyboard 0 Movement Mouse Keybinds 0 Fullscreen 1 Font 18/SmallcapsGlow Map View 76x50 Tactical HUD 1 Map Filters NONE Filters NONE Steam 1 RUN: 8baf9dc8-74c2-47ac-bdbe-5074422b48f6